Cogmind - Beta 11.1 @@@ ROGUE MODE // 2022.05.01 @ 23:16:36 Player: Olga Result: Destroyed by S-27 Virus with Autogun Performance ------------- Evolutions (4) 2000 Regions Visited (9) 1800 Robots Destroyed (2) 10 Value Destroyed (45) 45 Prototype IDs (23) 460 Alien Tech Used (0) 0 Bonus (1770) 1770 TOTAL SCORE: 6085 Bonus ------- Pacifist 270 Entered Garrisons 200 Used RIF Installer 500 Entered DSFs 500 Aligned with FarCom 300 Cogmind --------- Core Integrity 0/850 Matter 221/300 Energy 64/100 System Corruption 0% Temperature Cool (0) Movement Core (50) Location -6/Garrison Parts ------- > --- POWER (1) -------- (None) > --- PROPULSION (4) --- (None) > --- UTILITY (8) ------ Advanced ECM Suite > --- WEAPON (2) ------- (None) > --- INVENTORY (5) ---- Micro Nuclear Core Longsword +1 Peak State ------------ > --- POWER ------------ Micro Nuclear Core > --- PROPULSION ------- Flight Unit Flight Unit Flight Unit > --- UTILITY ---------- Machine Analyzer Melee Analysis Suite System Shield > --- WEAPON ----------- Longsword +1 > --- INVENTORY -------- (None) [Rating: 24] Favorites ----------- Power Light Ion Engine Engine Light Ion Engine Power Core Micro Nuclear Core Propulsion Flight Unit Flight Unit Flight Unit Utility Melee Analysis Suite Device Advanced ECM Suite Processor Melee Analysis Suite Hackware System Shield Protection Hardened Light Armor Plating Weapon Small Laser Energy Gun Small Laser Ballistic Gun Assault Rifle Launcher Grenade Launcher Slashing Weapon Longsword +1 Build | -11 -10 -10 -10 -9 -8 -7 -7 -6 -6 ------- Run | Scr Mat Min Exi Min Mat Fac DSF Fac Gar Slots Evolved 8 | . . . . . 4 2 . 2 . Power . | . . . . . . . . . . Propulsion 2 | . . . . . 2 . . . . Utility 6 | . . . . . 2 2 . 2 . Weapon . | . . . . . . . . . . Parts Attached 22 | 2 4 1 . 1 7 4 1 . 2 Power 2 | . . 1 . . . 1 . . . Engine 1 | . . 1 . . . . . . . Core 1 | . . . . . . 1 . . . Reactor . | . . . . . . . . . . Propulsion 7 | . 4 . . . 3 . . . . Treads . | . . . . . . . . . . Leg . | . . . . . . . . . . Wheel . | . . . . . . . . . . Hover . | . . . . . . . . . . Flight 7 | . 4 . . . 3 . . . . Utility 8 | . . . . 1 2 2 1 . 2 Device 1 | . . . . . . . . . 1 Storage . | . . . . . . . . . . Processor 2 | . . . . . 1 1 . . . Hackware 1 | . . . . . 1 . . . . Protection 4 | . . . . 1 . 1 1 . 1 Artifact . | . . . . . . . . . . Weapon 5 | 2 . . . . 2 1 . . . Energy Gun 1 | 1 . . . . . . . . . Energy Cannon . | . . . . . . . . . . Ballistic Gun 1 | 1 . . . . . . . . . Ballistic Cannon . | . . . . . . . . . . Launcher 1 | . . . . . 1 . . . . Special Weapon . | . . . . . . . . . . Impact Weapon . | . . . . . . . . . . Slashing Weapon 2 | . . . . . 1 1 . . . Piercing Weapon . | . . . . . . . . . . Special Melee Weapon . | . . . . . . . . . . Unidentified Prototypes . | . . . . . . . . . . Parts Lost 12 | . . . . . 5 . 6 . 1 Power 1 | . . . . . 1 . . . . Propulsion 5 | . . . . . 2 . 3 . . Utility 5 | . . . . . 1 . 3 . 1 Weapon 1 | . . . . . 1 . . . . Highest Loss Streak 6 | . . . . . 5 . 6 . 1 To Critical Strikes . | . . . . . . . . . . Average Slot Usage (%) 48 | . 38 66 71 65 73 54 20 . . Engine 5 | . . 9 14 14 7 . . . . Flight 19 | . 10 28 28 28 32 23 2 . . Processor 2 | . . . . . 9 14 10 . . Hackware 1 | . . . . . 5 7 4 . . Protection 1 | . . . . 5 9 . 2 . . Energy Gun 8 | . 14 14 14 8 . . . . . Ballistic Gun 8 | . 14 14 14 8 . . . . . Naked Turns 113 | . . . . . . . 14 17 82 Heaviest Build 14 | 3 3 6 6 8 14 9 8 . 8 Greatest Support 16 | 3 8 8 8 8 16 12 8 3 3 Greatest Overweight (x) 2 | . . . . . . . . . 2 Average Overweight (x) . | . . . . . . . . . . Largest Inventory Capacity 5 | 5 5 5 5 5 5 5 5 5 5 Average Capacity 5 | 5 5 5 5 5 5 5 5 5 5 Most Carried 5 | 4 5 5 5 5 4 3 4 4 4 Average Carried 4 | 4 4 4 4 5 1 1 3 4 3 Final Capacity 5 | 5 5 5 5 5 5 5 5 5 5 Final Carried 5 | 4 5 5 5 5 1 3 4 4 2 Class Distribution -------------------- 100% | Mutant Dominant Class ---------------- Mutant | -10/Materials Mutant | -10/Mines Mutant | -10/Exiles Mutant | -9/Mines Mutant | -8/Materials Mutant | -7/Factory Mutant | -7/DSF Mutant | -6/Factory Mutant | -6/Garrison Resources | -11 -10 -10 -10 -9 -8 -7 -7 -6 -6 ----------- Run | Scr Mat Min Exi Min Mat Fac DSF Fac Gar Matter Collected 314 | 200 41 20 . . . 53 . . . Remotely . | . . . . . . . . . . Salvage Created 60 | . . . . . 7 53 . . . Parts 2 | . . . . . 1 1 . . . Haulers Intercepted . | . . . . . . . . . . Recyclers Shooed . | . . . . . . . . . . Parts Field Recycled . | . . . . . . . . . . Retrieved Matter . | . . . . . . . . . . Parts Self-Destructed . | . . . . . . . . . . Prevented . | . . . . . . . . . . Kills | -11 -10 -10 -10 -9 -8 -7 -7 -6 -6 ------- Run | Scr Mat Min Exi Min Mat Fac DSF Fac Gar Combat Hostiles Destroyed 1 | . . . . . 1 . . . . AOE 1 | . . . . . 1 . . . . Classes Destroyed 2 | . . . . . 1 1 . . . Mechanic 1 | . . . . . . 1 . . . Cutter 1 | . . . . . 1 . . . . Best Kill Streak 2 | . . . . . 1 2 . . . Combat Bots Only 1 | . . . . . 1 . . . . Max Kills in Single Turn 1 | . . . . . 1 1 . . . Gunslinging . | . . . . . . . . . . Exploded 1 | . . . . . 1 . . . . Melee . | . . . . . . . . . . Uniques/NPCs Destroyed . | . . . . . . . . . . Combat | -11 -10 -10 -10 -9 -8 -7 -7 -6 -6 -------- Run | Scr Mat Min Exi Min Mat Fac DSF Fac Gar Damage Taken 1867 | . 94 . . 12 374 . 331 . 1056 Core 1149 | . 18 . . 12 68 . 186 . 865 Absorbed by Shields 95 | . . . . . . . 73 . 22 Core Remaining (%) 87 | 100 . . . 88 87 . 73 . . Volleys Fired 5 | . . . . . 5 . . . . Largest 1 | . . . . . 1 . . . . Hottest 30 | . . . . . 30 . . . . Shots Fired 5 | . . . . . 5 . . . . Gun . | . . . . . . . . . . Cannon . | . . . . . . . . . . Launcher 5 | . . . . . 5 . . . . Special . | . . . . . . . . . . Kinetic . | . . . . . . . . . . Thermal . | . . . . . . . . . . Explosive 5 | . . . . . 5 . . . . Electromagnetic . | . . . . . . . . . . Robot Hit Streak . | . . . . . . . . . . Robot Miss Streak . | . . . . . . . . . . Penetration Max . | . . . . . . . . . . Secondary Targets . | . . . . . . . . . . Shots Hit Robots 2 | . . . . . . 2 . . . Core Hits 5 | . 1 . . . 3 1 . . . Critical Kills . | . . . . . . . . . . Critical Parts Destroyed . | . . . . . . . . . . Critical Strikes . | . . . . . . . . . . Melee Attacks 2 | . . . . . . 2 . . . Impact . | . . . . . . . . . . Slashing 2 | . . . . . . 2 . . . Piercing . | . . . . . . . . . . Sneak Attacks 1 | . . . . . . 1 . . . Combat Hostiles . | . . . . . . . . . . Follow-up Attacks . | . . . . . . . . . . Damage Inflicted 291 | . 22 . . . 89 178 . . 2 Guns . | . . . . . . . . . . Cannons . | . . . . . . . . . . Explosions 89 | . . . . . 89 . . . . Melee 178 | . . . . . . 178 . . . Ramming 24 | . 22 . . . . . . . 2 Kinetic . | . . . . . . . . . . Thermal . | . . . . . . . . . . Explosive 89 | . . . . . 89 . . . . Electromagnetic . | . . . . . . . . . . Impact . | . . . . . . . . . . Slashing 178 | . . . . . . 178 . . . Piercing . | . . . . . . . . . . Highest Corruption 5 | . . . . . 5 . . . . Average Corruption 5 | . . . . . 5 . . . . Corruption Purged . | . . . . . . . . . . Corruption Blocked . | . . . . . . . . . . Overload Shots . | . . . . . . . . . . Overflow Damage 88 | . . . . . 12 76 . . . Projectiles . | . . . . . . . . . . Explosions 12 | . . . . . 12 . . . . Melee 76 | . . . . . . 76 . . . Knockbacks . | . . . . . . . . . . Impact . | . . . . . . . . . . Kinetic . | . . . . . . . . . . Secondary . | . . . . . . . . . . Self-Inflicted Damage 68 | . 10 . . . 57 . . . 1 Shots 3 | . . . . . 3 . . . . Rammed 5 | . 3 . . . . . . . 2 Targets Rammed 5 | . 3 . . . . . . . 2 Kicked . | . . . . . . . . . . Crushed . | . . . . . . . . . . Highest Temperature 29 | . . . . . 29 . . . . Average Temperature 17 | . . . . . 17 . . . . Received Heat Transfer 164 | . . . . 6 63 . 79 . 16 Siege Activations . | . . . . . . . . . . Robots Corrupted . | . . . . . . . . . . Combat Hostiles . | . . . . . . . . . . Parts Fried . | . . . . . . . . . . Impact Corruptions . | . . . . . . . . . . Robots Melted . | . . . . . . . . . . Combat Hostiles . | . . . . . . . . . . Parts Melted . | . . . . . . . . . . Heat Transferred . | . . . . . . . . . . Parts Sabotaged . | . . . . . . . . . . Parts Stolen . | . . . . . . . . . . Parts Stripped . | . . . . . . . . . . Power Chain Reactions . | . . . . . . . . . . Missiles Intercepted . | . . . . . . . . . . Alert | -11 -10 -10 -10 -9 -8 -7 -7 -6 -6 ------- Run | Scr Mat Min Exi Min Mat Fac DSF Fac Gar Peak Influence 154 | . 43 16 . 55 154 61 42 . 15 Initial 56 | . . 16 . . 21 56 42 . . Average 27 | . 34 16 . 10 80 60 13 . 3 Maximum Alert Level . | . . . . . . . . . . Low Security (%) 100 | 100 100 100 . 100 100 100 100 100 100 Level 1 . | . . . . . . . . . . Level 2 . | . . . . . . . . . . Level 3 . | . . . . . . . . . . Level 4 . | . . . . . . . . . . Level 5 . | . . . . . . . . . . High Security . | . . . . . . . . . . Max Security . | . . . . . . . . . . Squads Dispatched 8 | . 1 1 . 1 5 . . . . Investigation 3 | . . 1 . 1 1 . . . . Extermination . | . . . . . . . . . . Reinforcement 5 | . 1 . . . 4 . . . . Assault . | . . . . . . . . . . Garrison . | . . . . . . . . . . Intercept . | . . . . . . . . . . Searches Triggered . | . . . . . . . . . . Construction Impeded . | . . . . . . . . . . Haulers Reinforced . | . . . . . . . . . . Active Scanning Responses . | . . . . . . . . . . Cargo Convoy Interrupts . | . . . . . . . . . . Stealth | -11 -10 -10 -10 -9 -8 -7 -7 -6 -6 --------- Run | Scr Mat Min Exi Min Mat Fac DSF Fac Gar Distress Signals 1 | . . . . . 1 . . . . Communications Jammed . | . . . . . . . . . . Distress Signals . | . . . . . . . . . . Times Spotted 32 | . 8 . . 3 8 1 2 . 10 Peak Tracking Total 10 | . 6 . . 3 8 . 2 . 10 Tactical Retreats 1 | . . . . 1 . . . . . Traps | -11 -10 -10 -10 -9 -8 -7 -7 -6 -6 ------- Run | Scr Mat Min Exi Min Mat Fac DSF Fac Gar Traps Triggered 3 | . . . . . . . 2 . 1 Indirectly . | . . . . . . . . . . Trap Hack Attempts . | . . . . . . . . . . Triggered . | . . . . . . . . . . Disarmed . | . . . . . . . . . . Reprogrammed . | . . . . . . . . . . Reused . | . . . . . . . . . . Traps Extracted . | . . . . . . . . . . Installed . | . . . . . . . . . . Triggered 1 | . . . . 1 . . . . . Machines | -11 -10 -10 -10 -9 -8 -7 -7 -6 -6 ---------- Run | Scr Mat Min Exi Min Mat Fac DSF Fac Gar Machines Disabled . | . . . . . . . . . . Max in Single Turn . | . . . . . . . . . . Machines Sabotaged . | . . . . . . . . . . Garrisons Compromised . | . . . . . . . . . . Overloaded Fab Kills . | . . . . . . . . . . Hacking | -11 -10 -10 -10 -9 -8 -7 -7 -6 -6 --------- Run | Scr Mat Min Exi Min Mat Fac DSF Fac Gar Machines Accessed 11 | . 2 1 1 1 4 1 . 1 . Terminals 8 | . 2 . . 1 4 1 . . . Fabricators . | . . . . . . . . . . Repair Stations . | . . . . . . . . . . Recycling Units . | . . . . . . . . . . Scanalyzers . | . . . . . . . . . . Garrison Access 1 | . . . . . . . . 1 . Total Hacks 30 | . 9 1 1 3 14 1 . 1 . Successful 12 | . 2 1 1 . 6 1 . 1 . Failed 18 | . 7 . . 3 8 . . . . Catastrophic 5 | . 1 . . 1 3 . . . . Database Lockouts . | . . . . . . . . . . Manual 21 | . 6 . 1 . 14 . . . . Terminals 27 | . 9 . . 3 14 1 . . . Fabricators . | . . . . . . . . . . Repair Stations . | . . . . . . . . . . Recycling Units . | . . . . . . . . . . Scanalyzers . | . . . . . . . . . . Garrison Access 1 | . . . . . . . . 1 . Terminal Hacks 7 | . 2 1 1 . 2 1 . . . Open Door 1 | . . 1 . . . . . . . Open DSF 1 | . . . . . . 1 . . . Level Access Points 1 | . . . . . 1 . . . . Branch Access Points 1 | . 1 . . . . . . . . Terminal Index 2 | . 1 . . . 1 . . . . EX-Prototype ID Bank 1 | . . . 1 . . . . . . Fabricator Hacks . | . . . . . . . . . . Repair Station Hacks . | . . . . . . . . . . Recycling Unit Hacks . | . . . . . . . . . . Scanalyzer . | . . . . . . . . . . Garrison Access Hacks 1 | . . . . . . . . 1 . Unlock Access 1 | . . . . . . . . 1 . Unauthorized Hacks 4 | . . . . . 4 . . . . Terminals 4 | . . . . . 4 . . . . Botnet 4 | . . . . . 4 . . . . Fabricators . | . . . . . . . . . . Repair Stations . | . . . . . . . . . . Recycling Units . | . . . . . . . . . . Scanalyzers . | . . . . . . . . . . Garrison Access . | . . . . . . . . . . Data Cores Recovered . | . . . . . . . . . . Used . | . . . . . . . . . . Hacking Detections 7 | . 2 . . 1 4 . . . . Full Trace Events 5 | . 2 . . 1 2 . . . . Feedback Events . | . . . . . . . . . . Feedback Blocked . | . . . . . . . . . . Robot Schematics Acquired . | . . . . . . . . . . Robots Built . | . . . . . . . . . . Authchips . | . . . . . . . . . . Time . | . . . . . . . . . . Total Robot Build Rating . | . . . . . . . . . . Part Schematics Acquired . | . . . . . . . . . . Parts Built . | . . . . . . . . . . Authchips . | . . . . . . . . . . Time . | . . . . . . . . . . Total Part Build Rating . | . . . . . . . . . . Parts Repaired . | . . . . . . . . . . Time . | . . . . . . . . . . Parts Recycled . | . . . . . . . . . . Recycled Matter . | . . . . . . . . . . Retrieved Matter . | . . . . . . . . . . Retrieved Components . | . . . . . . . . . . Parts Scanalyzed . | . . . . . . . . . . Part Schematics Acquired . | . . . . . . . . . . Parts Damaged . | . . . . . . . . . . Bothacking | -11 -10 -10 -10 -9 -8 -7 -7 -6 -6 ------------ Run | Scr Mat Min Exi Min Mat Fac DSF Fac Gar Used RIF Installer 1 | . . . . . . . . . 1 Robots Hacked . | . . . . . . . . . . Non-combat . | . . . . . . . . . . Combat . | . . . . . . . . . . Robot Hacks Applied . | . . . . . . . . . . Relay Couplers Released . | . . . . . . . . . . Fabnet Peak Effective % . | . . . . . . . . . . Robots Rewired . | . . . . . . . . . . Allies Hacked . | . . . . . . . . . . Hacks Repelled . | . . . . . . . . . . Allies | -11 -10 -10 -10 -9 -8 -7 -7 -6 -6 -------- Run | Scr Mat Min Exi Min Mat Fac DSF Fac Gar Total Allies 3 | . . 3 . . . . . . . Largest Group 3 | . . 3 . . . . . . . Highest-Rated Group 40 | . . 40 . . . . . . . Highest-Rated Ally 16 | . . 16 . . . . . . . Total Orders . | . . . . . . . . . . Ally Attacks . | . . . . . . . . . . Total Damage . | . . . . . . . . . . Kills . | . . . . . . . . . . Allies Corrupted . | . . . . . . . . . . Allies Melted . | . . . . . . . . . . Intel | -11 -10 -10 -10 -9 -8 -7 -7 -6 -6 ------- Run | Scr Mat Min Exi Min Mat Fac DSF Fac Gar Robot Analysis Total . | . . . . . . . . . . Derelict Logs Recovered . | . . . . . . . . . . Drone Launches . | . . . . . . . . . . Drone Recoveries . | . . . . . . . . . . Exploration | -11 -10 -10 -10 -9 -8 -7 -7 -6 -6 ------------- Run | Scr Mat Min Exi Min Mat Fac DSF Fac Gar Turns Passed 681 | 4 109 166 83 48 52 77 37 17 88 Spaces Moved 1458 | 3 189 422 220 122 108 192 30 33 139 Core 334 | 3 135 . . . . . 24 33 139 Treads . | . . . . . . . . . . Legs . | . . . . . . . . . . Wheels . | . . . . . . . . . . Hover . | . . . . . . . . . . Flight 1124 | . 54 422 220 122 108 192 6 . . Fastest Speed 31 | 50 37 37 37 37 31 34 37 50 50 Average Speed 39 | 50 46 37 37 37 31 34 47 50 50 Slowest Speed 150 | 50 50 37 37 37 34 34 50 50 150 Overloaded Moves . | . . . . . . . . . . Propulsion Burnouts . | . . . . . . . . . . Robots Hopped 16 | . 1 6 . 4 3 2 . . . Cave-ins Triggered . | . . . . . . . . . . Exploration Rate (%) 32 | 3 43 80 41 41 20 4 41 2 45 Regions Visited 9 Branch Regions 3 Pre-discovered Areas . | . . . . . . . . . . Known Exits Taken 4 | . 1 . . . 1 1 . 1 . Unknown Exits Taken 4 | 1 . 1 1 1 . . . . . Scrap Searched 3 | . . 1 . 2 . . . . . Spaces Dug . | . . . . . . . . . . Terrain Destroyed 41 | . . . . . 41 . . . . Melee . | . . . . . . . . . . Projectile . | . . . . . . . . . . AOE 41 | . . . . . 41 . . . . Terrain Rammed . | . . . . . . . . . . Walls Destroyed . | . . . . . . . . . . Machines Disabled . | . . . . . . . . . . Actions | -11 -10 -10 -10 -9 -8 -7 -7 -6 -6 --------- Run | Scr Mat Min Exi Min Mat Fac DSF Fac Gar Total 1536 | 4 210 425 221 120 117 198 53 33 155 Wait 15 | . 7 8 . . . . . . . Move 1418 | 2 186 409 219 113 101 187 29 33 139 Hop 16 | . 1 6 . 4 3 2 . . . Pick Up 7 | . 4 1 1 . . 1 . . . Fast Attach 9 | 1 2 . . 1 2 3 . . . Attach 11 | 1 . 1 . . 5 1 1 . 2 Detach 5 | . . . . . 1 2 2 . . Swap 2 | . 2 . . . . . . . . Drop 8 | . 5 . 1 2 . . . . . Fire 5 | . . . . . 5 . . . . Melee 2 | . . . . . . 2 . . . Ram 5 | . 3 . . . . . . . 2 Kick . | . . . . . . . . . . Crush . | . . . . . . . . . . Escape Stasis 33 | . . . . . . . 21 . 12 Rewire . | . . . . . . . . . . Trap . | . . . . . . . . . . Miscellaneous . | . . . . . . . . . . Route ------- -11/Scrapyard -10/Materials -10/Mines (discovered 3 exits: [*Mat x2] / *Exi) -10/Exiles -9/Mines -8/Materials (discovered 3 exits: *Fac x3) -7/Factory -7/DSF -6/Factory -6/Garrison (discovered 1 exit: [*Fac]) History --------- Turn | Location | Event 1 | -11/Scrapyard | Released all parts (6) 2 | -11/Scrapyard | Discovered new exit (range 2) 5 | -11/Scrapyard | Entered Materials 8 | -10/Materials | Identified exit to Mines 57 | -10/Materials | Met 8R-AWN 114 | -10/Materials | Entered Mines 115 | -10/Mines | Followed 8R-AWN into the Mines 118 | -10/Mines | Met a Derelict shopkeep closing up shop 139 | -10/Mines | Found a hidden stash of uninstalled traps 179 | -10/Mines | YI-UF0 nonchalantly dropped a Grenade Launcher on the ground 179 | -10/Mines | Discovered new exit (range 14) 218 | -10/Mines | Assisted by bots powering up and referring to "LRC-V3" 226 | -10/Mines | Discovered new exit (range 11) 279 | -10/Mines | Discovered new exit (range 5) 280 | -10/Mines | Entered Exiles 285 | -10/Exiles | Discovered new exit (range 15) 294 | -10/Exiles | Welcomed by 8R-AWN 299 | -10/Exiles | Met EX-HEX 310 | -10/Exiles | Met EX-BIN 314 | -10/Exiles | Build established: Mutant 314 | -10/Exiles | Aligned with FarCom system 315 | -10/Exiles | Given EX-Vault access code 323 | -10/Exiles | Opened EX-Vault 327 | -10/Exiles | Found Longsword +1 335 | -10/Exiles | Warned to stay clear of 0b10 Research branches 351 | -10/Exiles | Learned about 8R-AWN's background 363 | -10/Exiles | Left Exiles lab with Longsword +1 363 | -10/Exiles | Entered Mines 407 | -9/Mines | Discovered new exit (range 12) 411 | -9/Mines | Entered Materials 411 | -8/Materials | Evolved 4 slots: Propulsion x2, Utility x2 439 | -8/Materials | Identified exit to Factory 463 | -8/Materials | Entered Factory 463 | -7/Factory | Evolved 2 slots: Utility x2 493 | -7/Factory | Lost 5 parts (1p2n1u1w) 540 | -7/Factory | Identified exit to DSF 540 | -7/Factory | Entered DSF 570 | -7/DSF | Discovered new exit (range 15) 577 | -7/DSF | Entered Factory 577 | -6/Factory | Evolved 2 slots: Utility x2 594 | -6/Factory | Lost 6 parts (3n3u) 594 | -6/Factory | Identified exit to Garrison 594 | -6/Factory | Entered Garrison 597 | -6/Garrison | Installed Relay Interface Framework 616 | -6/Garrison | Triggered checkpoint 648 | -6/Garrison | Triggered checkpoint 666 | -6/Garrison | Triggered checkpoint 667 | -6/Garrison | Core integrity fell below 50% 678 | -6/Garrison | Core integrity fell below 20% 679 | -6/Garrison | Discovered new exit (range 10) 682 | -6/Garrison | Destroyed by S-27 Virus with Autogun Last Messages --------------- 00626_ Stasis field depleted. 00648_ Beams of light sweep through the air. An alarm sounds. 00655_ Slug penetrates Wall. 00658_ Penetrated by Slug. 00659_ Slug penetrates H-66 Slayer. 00661_ Slug penetrates Wall. 00665_ Penetrated by Slug. 00666_ Beams of light sweep through the air. An alarm sounds. 00667_ Slug penetrates Wall. 00668_ Slug penetrates S-27 Virus. 00668_ S-27 Virus suffers critical hit (Destroy). 00669_ Slammed into S-27 Virus. 00670_ Penetrated by Slug. 00670_ S-27 Virus destroyed. 00670_ Slug penetrates S-27 Virus. 00671_ Penetrated by Slug. 00673_ Hrd. Medium Armor Plating destroyed. 00676_ Slug penetrates H-66 Slayer. 00678_ Penetrated by Slug. 00679_ EXIT=FOUND Map ----- +----------------------------------------------------+ | ??????????????????????????????????????????? | | ??????????????????????????????????????????? | | ??????????????????????????????????????????? | | ??????????????????????????????????????????? | | ??????????????????????????????????????????? | | ??????????????????????????????????????????? | | ??????????????????????????????????????????? | | ??????????????????????????????????????????? | | ??????????????????????????????????????????? | | ??????####????????????????????????????????? | | ????### #????????????????????????????????? | | ????#"# #????????????????????????????????? | | ????#" #????????????????????????????????? | | ????#" #????????????????????????????????? | | ?????" #????????????????????????????????? | | ??????# #????????????????????????????????? | | ??????# #????????????????????????????????? | | ??????# #????????????????????????????????? | | ??????# #????????????????????????????????? | | ????### #????????????????????????????????? | | ????# #????????????????????????????????? | | ????# #????????????????????????????????? | | ????# =% #????????????????????????????????? | | ????### #????????????????????????????????? | | ####### #################### < #?????????? | | s @ #?????????? | | s ss #?????????? | | ^ hhs s #?????????? | | #######++########################?????????? | | #?????????????????????????????????????????? | | #?????????????????????????????????????????? | | #?????????????????????????????????????????? | | #?????????????????????????????????????????? | | #?????????????????????????????????????????? | | #?????????????????????????????????????????? | | #?????????????????????????????????????????? | | #?????????????????????????????????????????? | | #?????????????????????????????????????????? | | #?????????????????????????????????????????? | | #?????????????????????????????????????????? | | #?????????????????????????????????????????? | | "?????????????????????????????????????????? | | "?????????????????????????????????????????? | | "?????????????????????????????????????????? | | "?????????????????????????????????????????? | | #?????????????????????????????????????????? | | #?????????????????????????????????????????? | | ??????????????????????????????????????? | | ??????????????????????????????????????? | | ####??????????????????????????????????????? | +----------------------------------------------------+ Best States ------------- Heat Dissipation 37 Energy Generation 15 Energy Capacity 150 Matter Stores 300 Matter Capacity 300 Sight Range 16 Terrain Scan Density 10 Armor Coverage 225 Evasion (%) 63 Melee Accuracy 5 Defensive Hacking 10 Item Schematics ----------------- None Robot Schematics ------------------ None Fabricated ------------ Nothing Alien Tech Used ----------------- None Achievements -------------- None Challenges ------------ None Game ------ Seed ChromaticMissileKatana Manual? 0 Play Time 00:14:48 Cumulative 148.5 hours Start 2022.05.01 @ 23:02:24 End 2022.05.01 @ 23:16:36 Sessions 1 Manual Loads 0 Difficulty Rogue Special Mode None Game No. 228 Rogue 227 Adventurer 0 Explorer 1 Win Type - Total 6 Types 6/0/0/0/0/0/0/0/0 Lore% 60 Gallery% 62 Achievement% 51 Wizard Run 0 Options --------- ASCII 1 Keyboard 0 Movement Vi Keybinds 0 Fullscreen 1 Font 18/SmallcapsGlow Map View 76x50 Tactical HUD 1 Map Filters NONE Filters NONE Steam 1 RUN: fcbc06dc-6dd5-4ed0-b91d-90415676ac92